bitfinex/quotes_SOLUSD_20240716
["timestamp","ask_amount","ask_price","bid_price","bid_amount"]
[1721110616270,20.0,156.58,156.51,16.3485]
[1721110617074,6.387,156.57,156.52,6.3886]
[1721110617474,20.0,156.56,156.52,6.3886]
[1721110618274,16.89516962,156.59,156.51,16.3485]
[1721110618479,26.3866,156.58,156.53,6.3881]
[1721110619185,26.3866,156.58,156.52,57.4154]
[1721110619186,6.3869,156.57,156.52,57.4154]
[1721110619571,6.3874,156.56,156.52,6.0266]
[1721110620181,35.9666,156.58,156.51,16.3485]
[1721110620584,6.3877,156.55,156.51,16.3485]
[1721110620769,6.3871,156.57,156.51,16.3485]
[1721110620970,20.0,156.58,156.51,16.3485]
[1721110621371,6.3871,156.57,156.52,6.3888]
[1721110621586,20.0,156.56,156.52,6.3888]
[1721110621787,6.3878,156.55,156.51,16.3485]
[1721110622093,6.3882,156.54,156.51,16.3485]
[1721110622689,6.3877,156.55,156.51,16.3485]
[1721110623196,20.0,156.56,156.51,16.3485]
[1721110623392,6.3871,156.57,156.52,6.3888]
[1721110623590,26.3874,156.56,156.51,16.3485]
[1721110624073,26.3874,156.56,156.51,22.7377]
[1721110624270,6.3881,156.54,156.51,16.3485]
[1721110624675,6.3877,156.55,156.51,16.3485]
[1721110626194,18.84,156.54,156.51,22.7378]
[1721110626379,18.84,156.55,156.51,22.7378]
[1721110626583,20.0,156.56,156.51,22.7378]
[1721110626800,38.84,156.56,156.51,22.7378]
[1721110627111,38.84,156.56,156.52,6.3888]
[1721110627603,38.84,156.56,156.51,22.7377]
[1721110627900,38.84,156.56,156.51,41.5777]
[1721110628107,18.84,156.56,156.52,6.3888]
[1721110628286,25.2272,156.57,156.52,6.3888]
[1721110629980,6.3872,156.57,156.52,6.3888]
[1721110630184,6.3864,156.59,156.53,6.3885]
[1721110630390,20.0,156.58,156.53,6.3885]
[1721110630584,26.3865,156.58,156.53,6.3885]
[1721110630872,38.84,156.58,156.52,25.2289]
[1721110631077,18.84,156.56,156.51,35.1885]
[1721110631485,25.2273,156.56,156.51,35.1885]
[1721110631880,18.84,156.55,156.51,22.7377]
[1721110632078,20.0,156.58,156.52,6.3889]
[1721110632079,6.387,156.57,156.52,6.3889]
[1721110632301,18.84,156.56,156.52,6.3889]
[1721110632591,20.0,156.58,156.52,18.84]
[1721110632800,38.84,156.58,156.53,45.0]
[1721110632981,38.84,156.58,156.51,16.3485]
[1721110633186,18.84,156.57,156.51,16.3485]
[1721110633380,38.84,156.56,156.51,16.3485]
[1721110633581,25.2269,156.57,156.51,35.1885]
[1721110633776,26.3865,156.58,156.52,63.84]
[1721110633983,45.2265,156.58,156.52,63.84]
[1721110634182,45.2265,156.58,156.52,70.2288]
[1721110634377,18.84,156.57,156.52,70.2288]
[1721110635277,10.21656855,156.6,156.54,18.84]
[1721110635511,18.84,156.6,156.55,25.2273]
[1721110636004,6.3845,156.63,156.55,18.84]
[1721110636200,6.3848,156.62,156.57,15.778]
[1721110636432,25.2253,156.61,156.57,15.778]
[1721110636719,18.84,156.61,156.57,15.778]
[1721110636882,18.84,156.6,156.57,15.778]
[1721110637819,25.2257,156.6,156.57,15.778]
[1721110638488,18.84,156.59,156.57,15.778]
[1721110638682,18.84,156.58,156.53,22.6263]
[1721110638883,32.0189,156.63,156.53,22.6263]
[1721110638884,18.84,156.55,156.53,22.6263]
[1721110639783,6.3877,156.55,156.49,28.5254]
[1721110639983,18.84,156.53,156.49,28.5254]
[1721110640204,6.3882,156.54,156.49,28.5254]
[1721110640406,6.3873,156.56,156.5,6.3897]
[1721110640597,6.3873,156.56,156.49,28.5254]
[1721110640891,6.3884,156.54,156.49,22.1353]
[1721110641101,6.3889,156.53,156.49,22.1353]
[1721110641416,37.69,156.58,156.49,22.1353]
[1721110641417,6.3885,156.54,156.49,22.1353]
[1721110641717,26.3886,156.53,156.49,22.1353]
[1721110642786,20.0,156.53,156.49,22.1353]
[1721110643086,26.3883,156.54,156.49,22.1353]
[1721110644090,20.0,156.54,156.49,22.1353]
[1721110644285,6.3876,156.56,156.49,22.1353]
[1721110644505,20.0,156.55,156.49,22.1353]
[1721110645210,20.0,156.55,156.5,45.0]
[1721110645989,6.3882,156.54,156.49,22.1353]
[1721110646181,20.0,156.55,156.45,12.5233]
[1721110646387,37.69,156.55,156.45,28.1302]
[1721110646702,6.3889,156.53,156.46,6.3913]
[1721110647608,6.3889,156.53,156.47,45.0]
[1721110648002,37.69,156.55,156.47,45.0]
[1721110648307,20.0,156.54,156.46,45.0]
[1721110649810,6.3885,156.53,156.46,51.3911]
[1721110650307,20.0,156.54,156.46,45.0]
[1721110650892,6.3873,156.56,156.49,6.3901]
[1721110651094,20.0,156.55,156.49,6.3901]
[1721110651489,26.3877,156.55,156.48,6.3905]
[1721110651791,20.0,156.55,156.49,45.0]
[1721110651990,26.3872,156.57,156.5,6.3893]
[1721110652202,6.3877,156.55,156.49,6.3901]
[1721110652803,6.3877,156.55,156.48,6.3905]
[1721110652999,6.3881,156.54,156.49,45.0]
[1721110653209,20.0,156.57,156.49,45.0]
[1721110653506,6.389,156.52,156.45,21.7385]
[1721110653712,6.389,156.52,156.46,65.0]
[1721110653923,6.3886,156.53,156.46,71.391]
[1721110655594,6.3886,156.53,156.47,6.3909]
[1721110655802,6.3881,156.54,156.48,6.3904]
[1721110656715,6.3881,156.54,156.47,6.3909]
[1721110657022,6.3881,156.54,156.48,45.0]
[1721110658119,6.3881,156.54,156.48,51.3905]
[1721110659319,6.3885,156.53,156.48,45.0]
[1721110660098,6.3885,156.53,156.47,45.0]
[1721110660301,18.85,156.51,156.47,51.3909]
[1721110660601,6.3885,156.53,156.47,51.3909]
[1721110660806,18.85,156.52,156.47,70.2409]
[1721110661042,18.85,156.52,156.48,7.04206955]
[1721110661218,18.85,156.52,156.49,45.0]
[1721110661417,18.85,156.52,156.48,6.3905]
[1721110661638,18.85,156.52,156.48,7.66844361]
[1721110661944,18.85,156.53,156.48,7.66844361]
[1721110662109,18.85,156.53,156.48,6.3905]
[1721110662316,6.3881,156.54,156.48,6.3905]
[1721110662525,18.85,156.53,156.48,6.3905]
[1721110662848,6.3881,156.54,156.48,25.2405]
[1721110663019,18.85,156.53,156.49,45.0]
[1721110663745,6.3885,156.53,156.46,6.391]
[1721110664046,18.85,156.5,156.47,45.0]
[1721110665255,18.85,156.49,156.45,21.7385]
[1721110665547,18.85,156.46,156.41,21.5583]
[1721110665727,18.85,156.44,156.41,21.5583]
[1721110665930,25.2426,156.43,156.41,15.2872]
[1721110666151,18.85,156.42,156.32,15.2872]
[1721110666322,18.85,156.41,156.35,18.85]
[1721110667152,18.85,156.4,156.35,18.85]
[1721110667644,25.9757,156.49,156.32,15.2872]
[1721110667645,15.9757,156.49,156.36,45.0]
[1721110667839,18.85,156.44,156.39,40.768]
[1721110668214,6.3918,156.45,156.39,21.918]
[1721110668435,6.3923,156.44,156.39,15.5241]
[1721110669272,6.3918,156.45,156.39,15.5241]
[1721110669570,6.3923,156.44,156.39,15.5241]
[1721110670361,6.3928,156.43,156.35,16.0859]
[1721110671540,37.74,156.46,156.36,45.0]
[1721110671763,20.0,156.45,156.36,45.0]
[1721110672068,6.3926,156.43,156.37,6.395]
[1721110673162,6.3922,156.44,156.37,6.395]
[1721110673551,6.3922,156.44,156.38,51.3945]
[1721110673751,6.3922,156.44,156.36,45.0]
[1721110674157,6.3922,156.44,156.38,6.3946]
[1721110676069,6.3922,156.44,156.39,45.0]
[1721110676259,6.3927,156.43,156.39,45.0]
[1721110676748,6.393,156.42,156.35,22.4817]
[1721110676948,6.393,156.42,156.36,45.0]
[1721110677582,20.0,156.45,156.36,45.0]
[1721110677743,37.74,156.47,156.36,45.0]
[1721110677939,6.3926,156.43,156.36,51.3954]
[1721110678277,6.3934,156.41,156.36,45.0]
[1721110679149,6.393,156.42,156.36,45.0]
[1721110679348,6.393,156.42,156.36,51.3954]
[1721110679553,53.7184,156.47,156.36,45.0]
[1721110679747,6.3923,156.44,156.37,6.395]
[1721110679952,53.7184,156.47,156.36,45.0]
[1721110680165,20.0,156.46,156.36,45.0]
[1721110680651,6.3927,156.43,156.36,51.3954]
[1721110681850,6.3927,156.43,156.37,6.3949]
[1721110683871,6.3927,156.43,156.36,51.3954]
[1721110684591,6.3935,156.41,156.36,45.0]
[1721110685499,6.3928,156.43,156.37,6.3949]
[1721110685802,6.3918,156.45,156.38,6.3946]
[1721110686098,57.74,156.46,156.36,45.0]
[1721110686099,20.0,156.44,156.39,6.3941]
[1721110686470,6.3906,156.48,156.41,6.393]
[1721110686670,6.3906,156.48,156.4,1.27870451]
[1721110686671,6.3903,156.49,156.42,6.3929]
[1721110686979,6.3903,156.49,156.42,21.6655]
[1721110687187,6.3898,156.5,156.43,51.3924]
[1721110687368,6.3892,156.52,156.44,6.3919]
[1721110688087,6.3895,156.51,156.44,6.3919]
[1721110688280,6.3898,156.5,156.43,45.0]
[1721110688697,6.3902,156.49,156.43,45.0]
[1721110689195,28.68524121,156.53,156.42,15.2726]
[1721110689405,6.391,156.47,156.42,15.2726]
[1721110689892,12.84032673,156.51,156.42,15.2726]
[1721110689893,6.3898,156.5,156.42,15.2726]
[1721110690104,12.84032673,156.51,156.45,6.3914]
[1721110690273,12.84032673,156.51,156.43,65.0]
[1721110690474,12.84032673,156.51,156.47,6.3909]
[1721110690683,12.84032673,156.51,156.46,6.3913]
[1721110690901,12.84032673,156.51,156.47,45.0]
[1721110691597,6.3897,156.5,156.43,26.3922]
[1721110691773,12.84032673,156.51,156.42,15.2726]
[1721110691972,20.0,156.5,156.43,45.0]
[1721110692207,12.84032673,156.51,156.43,45.0]
[1721110692408,6.64625373,156.52,156.43,45.0]
[1721110692409,37.74,156.54,156.43,45.0]
[1721110692901,6.3901,156.49,156.43,51.3922]
[1721110693398,6.3898,156.5,156.43,51.3922]
[1721110694098,6.3894,156.51,156.44,6.3921]
[1721110694295,6.0299,156.53,156.45,6.3916]
[1721110694486,26.389,156.52,156.45,6.3916]
[1721110694688,6.389,156.52,156.45,6.3916]
[1721110694990,6.3895,156.51,156.44,6.3921]
[1721110695197,6.3889,156.53,156.46,6.3913]
[1721110695506,22.4446,156.55,156.48,6.3904]
[1721110695695,6.3882,156.54,156.48,6.3904]
[1721110696290,6.3877,156.55,156.49,6.39]
[1721110696485,6.3877,156.55,156.48,6.3905]
[1721110697506,6.3877,156.55,156.44,1.13680794]
[1721110697507,44.38191914,156.57,156.49,22.7363]
[1721110697799,26.3874,156.56,156.49,22.7363]
[1721110698810,20.0,156.56,156.49,16.3463]
[1721110699424,6.3885,156.54,156.47,6.6026]
[1721110699589,6.3885,156.54,156.48,45.0]
[1721110699907,6.3886,156.53,156.47,6.6026]
[1721110700293,6.3882,156.54,156.47,12.9935]
[1721110701008,32.52500102,156.56,156.48,45.0]
[1721110701616,6.3885,156.53,156.47,12.9932]
[1721110702309,6.3881,156.54,156.48,6.3905]
[1721110705813,6.3878,156.55,156.48,6.3905]
[1721110705991,6.3878,156.55,156.49,6.39]
[1721110706715,6.3882,156.54,156.48,6.3905]
[1721110707293,32.52500102,156.56,156.5,6.3893]
[1721110707810,12.52500102,156.56,156.51,16.614]
[1721110708188,12.52500102,156.56,156.53,6.3884]
[1721110708392,12.52500102,156.56,156.52,51.3889]
[1721110708802,12.52500102,156.56,156.53,6.3883]
[1721110709020,6.3861,156.59,156.52,51.3888]
[1721110709190,6.3865,156.58,156.52,51.3888]
[1721110709818,6.3861,156.59,156.52,51.3888]
[1721110710315,6.3861,156.59,156.53,6.3885]
[1721110710804,6.3855,156.61,156.53,6.3885]
[1721110711004,20.0,156.6,156.54,6.3879]
[1721110711316,26.3858,156.6,156.53,1.27708886]
[1721110711522,6.3862,156.59,156.53,7.66548886]
[1721110711825,6.387,156.57,156.51,23.0029]
[1721110712026,6.387,156.57,156.51,16.614]
[1721110712722,57.74,156.6,156.51,16.614]
[1721110713012,6.3873,156.56,156.51,16.614]
[1721110714141,12.07894375,156.59,156.51,16.614]
[1721110714425,12.07894375,156.59,156.52,45.0]
[1721110714605,18.46534375,156.59,156.52,51.3886]
[1721110715112,18.46534375,156.59,156.52,45.0]
[1721110715318,12.07894375,156.59,156.54,6.388]
[1721110716037,6.3853,156.61,156.54,6.388]
[1721110716809,6.3857,156.6,156.54,6.388]
[1721110717730,6.3853,156.61,156.55,45.0]
[1721110717903,62.73812361,156.63,156.55,45.0]
[1721110718229,18.35363268,156.63,156.56,6.3872]
[1721110718430,18.35363268,156.63,156.57,51.3868]
[1721110718620,18.35363268,156.63,156.57,6.3868]
[1721110719935,18.35363268,156.63,156.56,6.3872]
[1721110720111,11.96913268,156.63,156.57,45.0]
[1721110720520,6.3849,156.62,156.56,45.0]
[1721110721032,6.3853,156.61,156.55,6.3877]
[1721110721820,6.3853,156.61,156.54,12.4816]
[1721110723210,6.3853,156.61,156.55,45.0]
[1721110723549,37.74,156.62,156.52,6.3888]
[1721110723735,37.74,156.62,156.51,16.614]
[1721110723736,6.3867,156.58,156.51,16.614]
[1721110724047,6.3867,156.58,156.52,65.0]
[1721110724417,6.3861,156.59,156.52,71.3887]
[1721110724618,6.3856,156.61,156.53,6.3883]
[1721110724824,6.3856,156.61,156.54,6.388]
[1721110725527,6.3858,156.6,156.54,6.388]
[1721110725840,6.3858,156.6,156.53,6.3884]
[1721110726031,6.3858,156.6,156.54,6.388]
[1721110726232,11.32554401,156.62,156.52,65.0]
[1721110726423,20.0,156.61,156.56,6.3872]
[1721110726823,20.0,156.61,156.55,6.3876]
[1721110727340,26.3853,156.61,156.54,6.388]
[1721110727534,26.3853,156.61,156.55,45.0]
[1721110729229,17.71044401,156.62,156.55,51.3875]
[1721110730025,6.3853,156.61,156.55,45.0]
[1721110730228,11.32554401,156.62,156.51,23.003]
[1721110730229,6.3868,156.58,156.51,23.003]
[1721110730532,6.3868,156.58,156.52,20.0]
[1721110730929,6.3868,156.58,156.51,16.614]
[1721110731329,6.3868,156.58,156.52,6.3887]
[1721110731541,17.96342227,156.62,156.51,23.0033]
[1721110731846,20.0,156.61,156.52,45.0]
[1721110732041,6.3865,156.58,156.52,51.3889]
[1721110732259,60.309,156.6,156.51,16.614]
[1721110732440,6.3873,156.56,156.49,6.3901]
[1721110732746,6.3869,156.57,156.5,6.3895]
[1721110732956,26.3863,156.59,156.47,15.6036]
[1721110733131,20.0,156.59,156.47,15.6036]
[1721110733560,20.0,156.59,156.48,65.0]
[1721110734353,33.68780071,156.6,156.48,65.0]
[1721110734662,33.68780071,156.6,156.54,6.388]
[1721110735046,27.63520071,156.6,156.54,6.388]
[1721110735447,27.63520071,156.6,156.55,6.3877]
[1721110735764,27.63520071,156.6,156.54,6.388]
[1721110735765,11.11880071,156.6,156.54,6.388]
[1721110738662,11.11880071,156.6,156.55,45.0]
[1721110739179,11.11880071,156.6,156.55,51.3876]
[1721110739953,11.11880071,156.6,156.55,45.0]
[1721110740173,17.50450071,156.6,156.54,45.0]
[1721110740870,6.3861,156.59,156.54,45.0]
[1721110741262,17.50450071,156.6,156.53,51.3884]
[1721110741954,17.50450071,156.6,156.54,6.3881]
[1721110742530,11.11880071,156.6,156.55,45.0]
[1721110742732,11.11880071,156.6,156.54,16.3422]
[1721110742963,11.11880071,156.6,156.55,46.27730109]
[1721110743254,11.11880071,156.6,156.55,45.0]
[1721110743440,11.11880071,156.6,156.56,6.3872]
[1721110743651,11.11880071,156.6,156.57,45.0]
[1721110747465,6.3853,156.61,156.54,16.3422]
[1721110747670,6.3853,156.61,156.55,45.0]
[1721110748273,18.83,156.59,156.55,45.0]
[1721110748450,18.83,156.59,156.53,6.3882]
[1721110748657,18.83,156.58,156.53,6.3882]
[1721110748967,18.83,156.56,156.53,6.3884]
[1721110749166,18.83,156.56,156.5,15.502]
[1721110749167,18.83,156.56,156.52,6.3889]
[1721110749543,18.83,156.53,156.48,6.3902]
[1721110750044,18.83,156.52,156.48,6.3902]
[1721110750451,18.83,156.52,156.49,6.39]
[1721110750657,18.83,156.53,156.49,6.39]
[1721110752373,6.3873,156.56,156.49,6.39]
[1721110752673,15.7711,156.57,156.51,6.389]
[1721110753171,15.8704,156.61,156.54,6.3877]
[1721110753683,15.8704,156.61,156.55,6.3876]
[1721110754046,22.2557,156.61,156.55,6.3876]
[1721110754355,12.6497,156.62,156.55,6.3876]
[1721110754566,48.53438571,156.64,156.57,6.3867]
[1721110754757,54.91878571,156.64,156.57,7.06839348]
[1721110754949,17.21878571,156.64,156.57,6.3867]
[1721110756073,6.385,156.62,156.56,45.0]
[1721110756455,6.385,156.62,156.56,51.3872]
[1721110757175,6.3845,156.63,156.56,51.3872]
[1721110759654,10.83438571,156.64,156.59,6.386]
[1721110759854,10.83438571,156.64,156.6,46.10973787]
[1721110760253,10.83438571,156.64,156.6,45.0]
[1721110760454,6.3824,156.68,156.62,6.3847]
[1721110760666,7.2403659,156.7,156.59,45.0]
[1721110760868,6.3833,156.66,156.59,51.386]
[1721110764285,48.75702266,156.69,156.6,6.3856]
[1721110764485,48.75702266,156.69,156.61,45.0]
[1721110765355,6.3829,156.67,156.61,45.0]
[1721110766482,6.3834,156.66,156.59,6.386]
[1721110766686,6.3834,156.66,156.6,45.0]
[1721110766982,6.3834,156.66,156.6,51.3855]
[1721110767300,6.3828,156.68,156.6,45.0]
[1721110767461,6.3828,156.68,156.61,6.3852]
[1721110767662,6.3828,156.68,156.62,45.0]
[1721110769058,17.43902266,156.69,156.62,51.3848]
[1721110769279,11.05702266,156.69,156.62,45.0]
[1721110769595,11.05702266,156.69,156.63,6.3843]
[1721110769894,11.05702266,156.69,156.64,51.3839]
[1721110770195,11.05702266,156.69,156.65,45.0]
[1721110770362,11.05702266,156.69,156.62,45.0]
[1721110770558,11.05702266,156.69,156.64,6.3839]
[1721110770867,0.8098659,156.7,156.64,6.3839]
[1721110772983,7.1915659,156.7,156.64,6.3839]
[1721110773153,0.8098659,156.7,156.66,6.3828]
[1721110774889,0.8098659,156.7,156.65,6.3835]
[1721110775085,0.8098659,156.7,156.66,45.0]
[1721110775720,27.12329926,156.73,156.66,51.3829]
[1721110775877,6.3808,156.72,156.66,51.3829]
[1721110776199,6.3808,156.72,156.66,51.3832]
[1721110776500,6.3808,156.72,156.58,34.8924]
[1721110776501,20.74289926,156.73,156.58,15.6724]
[1721110776689,20.74289926,156.73,156.59,21.27671128]
[1721110777280,6.3816,156.7,156.64,6.384]
[1721110777476,20.74289926,156.73,156.65,1.27645832]
[1721110777678,6.3813,156.71,156.65,1.27645832]
[1721110777912,6.3813,156.71,156.65,52.66005832]
[1721110778123,6.3808,156.72,156.66,1.2764616]
[1721110778283,20.74289926,156.73,156.66,7.6593616]
[1721110778621,6.3808,156.72,156.66,7.6593616]
[1721110779112,6.3808,156.72,156.66,1.2764616]
[1721110780411,6.3808,156.72,156.65,51.3836]
[1721110780993,20.74289926,156.73,156.66,6.3831]
[1721110781305,6.3803,156.74,156.67,6.3827]
[1721110781516,6.3803,156.74,156.68,1.27629337]
[1721110781889,6.3805,156.73,156.68,1.27629337]
[1721110782099,6.3808,156.72,156.65,51.3832]
[1721110782792,6.3808,156.72,156.66,6.3832]
[1721110783105,6.3808,156.72,156.67,45.0]
[1721110785117,6.3804,156.73,156.67,45.0]
[1721110786308,18.8,156.71,156.67,45.0]
[1721110786814,18.8,156.71,156.67,51.3827]
[1721110787008,6.63278037,156.76,156.67,51.3827]
[1721110787009,6.63278037,156.76,156.68,1.2762609]
[1721110787208,18.8,156.72,156.68,7.6585609]
[1721110789013,18.8,156.72,156.68,1.2762609]
[1721110791311,45.77313394,156.77,156.64,16.108]
[1721110791523,18.8,156.68,156.64,16.108]
[1721110792624,18.8,156.72,156.61,18.8]
[1721110792625,18.8,156.66,156.61,18.8]
[1721110792804,18.8,156.66,156.62,20.0]
[1721110793130,18.8,156.66,156.62,26.3847]
[1721110793620,21.7247,156.71,156.6,6.3856]
[1721110793820,18.8,156.64,156.6,6.3856]
[1721110793996,18.8,156.64,156.59,25.186]
[1721110794198,18.8,156.61,156.57,21.9341]
[1721110794406,15.9559,156.69,156.57,15.4789]
[1721110794407,18.8,156.59,156.57,15.4789]
[1721110794595,18.8,156.6,156.57,15.4789]
[1721110794921,18.8,156.6,156.57,21.8657]
[1721110795318,18.8,156.6,156.57,15.4789]
[1721110795713,6.3845,156.63,156.57,15.4789]
[1721110797000,37.66,156.65,156.53,22.373]
[1721110797203,37.66,156.62,156.53,22.373]
[1721110797409,20.0,156.61,156.53,16.0478]
[1721110797619,20.0,156.61,156.53,22.4363]
[1721110797914,6.3861,156.59,156.53,16.0478]
[1721110798407,20.0,156.61,156.53,16.0478]
[1721110798618,6.3857,156.6,156.53,22.4362]
[1721110799521,6.3865,156.58,156.5,6.3894]
[1721110799835,6.3865,156.58,156.51,21.3892]
[1721110800319,6.3873,156.56,156.49,29.3494]
[1721110800701,6.3873,156.56,156.5,6.3897]
[1721110801130,44.34033226,156.6,156.5,6.3897]
[1721110801131,6.3869,156.57,156.5,6.3897]
[1721110801307,6.3865,156.58,156.49,22.9596]
[1721110801720,6.3865,156.58,156.5,45.0]
[1721110802221,6.3865,156.58,156.51,6.3893]
[1721110803431,37.66,156.6,156.52,6.3889]
[1721110803633,20.0,156.59,156.53,6.3884]
[1721110803814,57.66,156.61,156.53,6.3884]
[1721110804013,64.0452,156.61,156.54,6.3879]
[1721110804207,26.3852,156.61,156.55,51.3877]
[1721110804525,57.66,156.61,156.5,45.0]
[1721110804833,6.3861,156.59,156.5,45.0]
[1721110805013,6.3857,156.6,156.51,20.0]
[1721110805337,6.3853,156.61,156.55,6.3875]
[1721110806008,22.4367,156.63,156.55,6.3875]
[1721110806206,6.3849,156.62,156.56,1.27737782]
[1721110806420,6.3849,156.62,156.56,52.66457782]
[1721110806620,6.3849,156.62,156.56,45.0]
[1721110807133,6.3845,156.63,156.57,1.27723521]
[1721110807315,6.3845,156.63,156.56,51.3872]
[1721110807502,6.3848,156.62,156.56,51.3872]
[1721110807813,6.3848,156.62,156.56,45.0]
[1721110808504,6.3856,156.61,156.51,20.0]
[1721110808711,6.3857,156.6,156.54,6.388]
[1721110808913,6.3857,156.6,156.55,45.0]
[1721110809307,6.3857,156.6,156.55,46.27734485]
[1721110809513,6.3853,156.61,156.55,52.66494485]
[1721110809831,37.66,156.64,156.56,6.3873]
[1721110810040,26.3845,156.63,156.57,52.66397883]
[1721110810215,26.3845,156.63,156.57,51.3868]
[1721110810614,6.3849,156.62,156.57,45.0]
[1721110810922,6.3853,156.61,156.56,45.0]
[1721110811124,6.3853,156.61,156.55,45.0]
[1721110811314,6.3857,156.6,156.55,45.0]
[1721110812233,6.3853,156.61,156.55,51.3875]
[1721110812447,27.89250632,156.67,156.56,43.76234875]
[1721110812621,21.4178,156.67,156.6,6.3855]
[1721110812942,6.3832,156.67,156.6,6.3855]
[1721110813114,6.3832,156.67,156.61,45.0]
[1721110813312,6.3833,156.66,156.61,45.0]
[1721110813956,6.3833,156.66,156.6,51.3855]
[1721110814435,6.3829,156.67,156.6,51.3855]
[1721110814612,20.0,156.66,156.61,1.27687108]
[1721110814813,20.0,156.66,156.6,51.3855]
[1721110815021,6.3825,156.68,156.61,7.66207108]
[1721110815319,20.0,156.67,156.62,45.0]
[1721110815515,20.0,156.67,156.63,1.2767305]
[1721110815722,44.85735416,156.71,156.62,51.3847]
[1721110815723,6.382,156.69,156.62,51.3847]
[1721110816131,6.3825,156.68,156.63,1.27664739]
[1721110816527,6.67535416,156.71,156.63,7.66104739]
[1721110816731,6.3812,156.71,156.64,45.0]
[1721110816936,6.3812,156.71,156.65,1.27640689]
[1721110817116,6.3812,156.71,156.64,51.384]
[1721110817444,6.3816,156.7,156.65,1.27641329]
[1721110818135,6.3816,156.7,156.64,51.384]
[1721110819651,6.38,156.74,156.67,6.3824]
[1721110819944,9.56476578,156.76,156.68,46.27620034]
[1721110819945,6.3804,156.73,156.68,46.27620034]
[1721110820330,6.3799,156.75,156.68,46.27620034]
[1721110820547,9.56476578,156.76,156.68,46.27620034]
[1721110820548,6.38,156.74,156.68,46.27620034]
[1721110821534,6.3806,156.73,156.68,45.0]
[1721110821739,6.3806,156.73,156.67,45.0]
[1721110821932,6.3808,156.72,156.67,45.0]
[1721110822441,6.3813,156.71,156.67,45.0]
[1721110822745,6.3808,156.72,156.67,45.0]
[1721110823049,6.3808,156.72,156.68,1.27634444]
[1721110823549,6.3808,156.72,156.67,1.27633767]
[1721110823951,6.3808,156.72,156.66,45.0]
[1721110824446,6.3803,156.74,156.67,0.90515234]
[1721110824650,6.3803,156.74,156.68,1.27356376]
[1721110824832,6.3803,156.74,156.68,46.27356376]
[1721110825028,6.3805,156.73,156.68,45.0]
[1721110825445,6.3799,156.75,156.69,1.27140927]
[1721110825649,6.3799,156.75,156.68,45.0]
[1721110825650,6.38,156.74,156.68,45.0]
[1721110826035,6.3804,156.73,156.68,45.0]
[1721110826544,6.38,156.74,156.68,45.0]
[1721110827449,6.38,156.74,156.68,51.3824]
[1721110828648,6.38,156.74,156.68,45.0]
[1721110828852,6.3811,156.72,156.63,22.6416]
[1721110829029,6.3811,156.72,156.64,65.0]
[1721110829234,6.3811,156.72,156.65,6.3832]
[1721110829448,6.3811,156.72,156.66,65.0]
[1721110829760,6.3811,156.72,156.66,71.3832]
[1721110830251,18.81,156.7,156.66,71.3832]
[1721110830752,6.3804,156.73,156.67,6.3828]
[1721110830959,18.81,156.7,156.67,6.3828]
[1721110831255,6.38,156.74,156.67,6.3828]